[Event "*** SCC Grand Prix: Titled Tuesday Blitz"]
[Site "Chess.com"]
[Date "2020.07.21"]
[Round "8"]
[White "Walter_White_Poland"]
[Black "DonBroca"]
[Result "1/2-1/2"]
[WhiteElo "2227"]
[BlackElo "2085"]
[TimeControl "180+1"]
[EndTime "11:36:38 PDT"]
[Termination "Game drawn by repetition"]

1. e4 {[%clk 0:02:53.1]} 1... c5 {[%clk 0:02:58.5]} 2. Nf3 {[%clk 0:02:49.9]}
2... d6 {[%clk 0:02:56.2]} 3. d4 {[%clk 0:02:46.4]} 3... cxd4 {[%clk 0:02:57.1]}
4. Nxd4 {[%clk 0:02:43.3]} 4... Nf6 {[%clk 0:02:57.5]} 5. Nc3 {[%clk 0:02:41]}
5... g6 {[%clk 0:02:57.6]} 6. Be3 {[%clk 0:02:39.4]} 6... Bg7 {[%clk 0:02:58]}
7. f3 {[%clk 0:02:39.5]} 7... O-O {[%clk 0:02:58.3]} 8. Qd2 {[%clk 0:02:38.8]}
8... Nc6 {[%clk 0:02:58.5]} 9. O-O-O {[%clk 0:02:36.6]} 9... Bd7 {[%clk
0:02:59]} 10. h4 {[%clk 0:02:03.6]} 10... h5 {[%clk 0:02:56.6]} 11. Kb1 {[%clk
0:01:21.1]} 11... Rc8 {[%clk 0:02:53.9]} 12. g4 {[%clk 0:01:10.5]} 12... hxg4
{[%clk 0:02:47]} 13. h5 {[%clk 0:01:10.7]} 13... gxh5 {[%clk 0:02:42]} 14. Bh6
{[%clk 0:01:03.6]} 14... Ne5 {[%clk 0:02:35]} 15. Bxg7 {[%clk 0:00:55]} 15...
Kxg7 {[%clk 0:02:35.9]} 16. Qg5+ {[%clk 0:00:46.1]} 16... Ng6 {[%clk 0:02:34.4]}
17. Nf5+ {[%clk 0:00:46]} 17... Bxf5 {[%clk 0:02:22.3]} 18. exf5 {[%clk
0:00:45.8]} 18... Rxc3 {[%clk 0:02:22.3]} 19. bxc3 {[%clk 0:00:37.3]} 19... Qb6+
{[%clk 0:02:19.1]} 20. Ka1 {[%clk 0:00:30.5]} 20... Qa5 {[%clk 0:02:15.8]} 21.
Qd2 {[%clk 0:00:22.7]} 21... Ne5 {[%clk 0:02:00.1]} 22. fxg4 {[%clk 0:00:20.4]}
22... Nexg4 {[%clk 0:01:49]} 23. Bd3 {[%clk 0:00:12.7]} 23... Rc8 {[%clk
0:01:41.4]} 24. Qg5+ {[%clk 0:00:10.9]} 24... Kf8 {[%clk 0:01:37.3]} 25. Qd2
{[%clk 0:00:07.4]} 25... Qxc3+ {[%clk 0:01:36.8]} 26. Qxc3 {[%clk 0:00:07.3]}
26... Rxc3 {[%clk 0:01:37.7]} 27. Rb1 {[%clk 0:00:06.7]} 27... b6 {[%clk
0:01:37]} 28. Rb3 {[%clk 0:00:06]} 28... Rc5 {[%clk 0:01:34.8]} 29. Kb2 {[%clk
0:00:06.2]} 29... Ke8 {[%clk 0:01:34.5]} 30. Rc3 {[%clk 0:00:06.4]} 30... Kd7
{[%clk 0:01:34.5]} 31. Rxc5 {[%clk 0:00:06]} 31... bxc5 {[%clk 0:01:27.8]} 32.
Be2 {[%clk 0:00:06.5]} 32... d5 {[%clk 0:01:27.2]} 33. Kc3 {[%clk 0:00:06.2]}
33... Kd6 {[%clk 0:01:26.7]} 34. Bxg4 {[%clk 0:00:06]} 34... hxg4 {[%clk
0:01:25.9]} 35. Kd3 {[%clk 0:00:05.7]} 35... e5 {[%clk 0:01:15.7]} 36. fxe6
{[%clk 0:00:04.7]} 36... fxe6 {[%clk 0:01:15.8]} 37. Rb1 {[%clk 0:00:04.5]}
37... Ke5 {[%clk 0:01:11.3]} 38. Rb7 {[%clk 0:00:04.5]} 38... g3 {[%clk
0:01:07.5]} 39. Rxa7 {[%clk 0:00:03.7]} 39... Nh5 {[%clk 0:01:06.5]} 40. Ke2
{[%clk 0:00:01.5]} 40... Kf4 {[%clk 0:01:01.4]} 41. Kf1 {[%clk 0:00:01.5]} 41...
Ke3 {[%clk 0:00:56.4]} 42. Rf7 {[%clk 0:00:02]} 42... e5 {[%clk 0:00:48.9]} 43.
Kg2 {[%clk 0:00:02.9]} 43... Nf4+ {[%clk 0:00:47.8]} 44. Kxg3 {[%clk 0:00:02.7]}
44... Kd2 {[%clk 0:00:48.1]} 45. a4 {[%clk 0:00:02.4]} 45... Kxc2 {[%clk
0:00:44.4]} 46. a5 {[%clk 0:00:02.3]} 46... d4 {[%clk 0:00:44.9]} 47. a6 {[%clk
0:00:02.3]} 47... d3 {[%clk 0:00:45.5]} 48. a7 {[%clk 0:00:02.4]} 48... d2
{[%clk 0:00:46]} 49. Rd7 {[%clk 0:00:02.6]} 49... Nd3 {[%clk 0:00:43.3]} 50.
a8=Q {[%clk 0:00:02.5]} 50... d1=Q {[%clk 0:00:42.9]} 51. Qa4+ {[%clk
0:00:02.4]} 51... Kd2 {[%clk 0:00:34.2]} 52. Qxd1+ {[%clk 0:00:03.3]} 52... Kxd1
{[%clk 0:00:35.1]} 53. Rxd3+ {[%clk 0:00:02.7]} 53... Kc2 {[%clk 0:00:35.2]} 54.
Rd5 {[%clk 0:00:03]} 54... c4 {[%clk 0:00:35.2]} 55. Kf2 {[%clk 0:00:02.8]}
55... c3 {[%clk 0:00:35.5]} 56. Ke2 {[%clk 0:00:03]} 56... e4 {[%clk 0:00:32.9]}
57. Rb5 {[%clk 0:00:02.1]} 57... Kc1 {[%clk 0:00:29.6]} 58. Ke3 {[%clk 0:00:02]}
58... c2 {[%clk 0:00:29.7]} 59. Ke2 {[%clk 0:00:02.1]} 59... e3 {[%clk
0:00:24.9]} 60. Kxe3 {[%clk 0:00:02.7]} 60... Kd1 {[%clk 0:00:25.1]} 61. Rd5+
{[%clk 0:00:03.6]} 61... Ke1 {[%clk 0:00:25.4]} 62. Rc5 {[%clk 0:00:03.5]} 62...
Kd1 {[%clk 0:00:25.4]} 63. Rd5+ {[%clk 0:00:03.4]} 63... Ke1 {[%clk 0:00:25.7]}
64. Rc5 {[%clk 0:00:03.5]} 64... Kd1 {[%clk 0:00:26.1]} 65. Rd5+ {[%clk
0:00:03.3]} 1/2-1/2

[Event "*** SCC Grand Prix: Titled Tuesday Blitz"]
[Site "Chess.com"]
[Date "2020.07.21"]
[Round "8"]
[White "bugsbunny444"]
[Black "Iljushin_Alexey"]
[Result "1-0"]
[WhiteElo "2596"]
[BlackElo "2689"]
[TimeControl "180+1"]
[EndTime "11:36:40 PDT"]
[Termination "bugsbunny444 won by resignation"]

1. Nf3 {[%clk 0:03:00.9]} 1... d5 {[%clk 0:02:59.6]} 2. c4 {[%clk 0:03:00.7]}
2... d4 {[%clk 0:02:58.4]} 3. b4 {[%clk 0:03:00.1]} 3... g5 {[%clk 0:02:57.3]}
4. Qb3 {[%clk 0:02:59.6]} 4... Bg7 {[%clk 0:02:54.5]} 5. Nxg5 {[%clk 0:02:59]}
5... e5 {[%clk 0:02:50.6]} 6. d3 {[%clk 0:02:59.5]} 6... a5 {[%clk 0:02:43.8]}
7. b5 {[%clk 0:02:59.2]} 7... Nd7 {[%clk 0:02:34]} 8. g3 {[%clk 0:02:49.5]} 8...
Qe7 {[%clk 0:02:09.9]} 9. Bg2 {[%clk 0:02:42.8]} 9... Qb4+ {[%clk 0:02:01.8]}
10. Bd2 {[%clk 0:02:38.5]} 10... Qxb3 {[%clk 0:01:50.3]} 11. axb3 {[%clk
0:02:37.7]} 11... Nc5 {[%clk 0:01:50.9]} 12. b4 {[%clk 0:02:13.6]} 12... Nb3
{[%clk 0:01:50.8]} 13. Ra3 {[%clk 0:02:13.7]} 13... a4 {[%clk 0:01:45.1]} 14.
O-O {[%clk 0:02:01]} 14... Bf8 {[%clk 0:01:45.4]} 15. c5 {[%clk 0:01:46.5]}
15... h6 {[%clk 0:01:39.3]} 16. Nf3 {[%clk 0:01:43.3]} 16... Bg7 {[%clk
0:01:36.6]} 17. Bc1 {[%clk 0:01:20.9]} 17... Bd7 {[%clk 0:01:25.4]} 18. Nfd2
{[%clk 0:01:20.1]} 18... Nxc1 {[%clk 0:01:21.2]} 19. Rxc1 {[%clk 0:01:19.1]}
19... Bxb5 {[%clk 0:01:21.4]} 20. Bxb7 {[%clk 0:01:12.2]} 20... Ra7 {[%clk
0:01:21.5]} 21. Bg2 {[%clk 0:01:02.4]} 21... Ne7 {[%clk 0:01:21.7]} 22. Nc4
{[%clk 0:00:58]} 22... Nc6 {[%clk 0:01:11.4]} 23. Nbd2 {[%clk 0:00:46.9]} 23...
O-O {[%clk 0:01:09.6]} 24. Rb1 {[%clk 0:00:30.6]} 24... Rb8 {[%clk 0:01:07.9]}
25. h4 {[%clk 0:00:24.6]} 25... Ne7 {[%clk 0:00:56.9]} 26. Na5 {[%clk
0:00:20.1]} 26... Rd8 {[%clk 0:00:42.4]} 27. Ndc4 {[%clk 0:00:16.8]} 27... Nd5
{[%clk 0:00:41.4]} 28. Bxd5 {[%clk 0:00:14.5]} 28... Rxd5 {[%clk 0:00:41.1]} 29.
Ra2 {[%clk 0:00:14]} 29... e4 {[%clk 0:00:36.4]} 30. dxe4 {[%clk 0:00:13.9]}
30... Rd8 {[%clk 0:00:34.9]} 31. Kg2 {[%clk 0:00:12.3]} 31... d3 {[%clk
0:00:27.9]} 32. exd3 {[%clk 0:00:12.1]} 32... Rxd3 {[%clk 0:00:26.7]} 33. Na3
{[%clk 0:00:11]} 33... Be8 {[%clk 0:00:19]} 34. c6 {[%clk 0:00:11.1]} 34... Rd4
{[%clk 0:00:18]} 35. Nb5 {[%clk 0:00:11.2]} 35... Rxa5 {[%clk 0:00:16.8]} 36.
bxa5 {[%clk 0:00:11.1]} 36... Rxe4 {[%clk 0:00:17.2]} 37. a6 {[%clk 0:00:10.4]}
37... Bxc6 {[%clk 0:00:17.7]} 38. f3 {[%clk 0:00:07.4]} 38... Rc4 {[%clk
0:00:16.8]} 39. Nxc7 {[%clk 0:00:04.4]} 39... Kh7 {[%clk 0:00:14.7]} 40. a7
{[%clk 0:00:04]} 40... Rc3 {[%clk 0:00:15.3]} 41. a8=Q {[%clk 0:00:03.6]} 41...
Bxa8 {[%clk 0:00:15.8]} 42. Nxa8 {[%clk 0:00:03.7]} 42... a3 {[%clk 0:00:16.5]}
43. Nb6 {[%clk 0:00:04.1]} 43... Bf8 {[%clk 0:00:16.3]} 44. Nd5 {[%clk 0:00:04]}
44... Rd3 {[%clk 0:00:16.1]} 45. Nf4 {[%clk 0:00:03.9]} 45... Rc3 {[%clk
0:00:15.3]} 46. Ne2 {[%clk 0:00:04.1]} 46... Rc4 {[%clk 0:00:15.4]} 47. Rc1
{[%clk 0:00:02.9]} 47... Ra4 {[%clk 0:00:12.5]} 48. Rc3 {[%clk 0:00:03.1]} 48...
Ra6 {[%clk 0:00:11.3]} 49. Rb3 {[%clk 0:00:03.3]} 49... h5 {[%clk 0:00:10.3]}
50. Nc3 {[%clk 0:00:03.6]} 50... Rc6 {[%clk 0:00:10]} 51. Nb1 {[%clk 0:00:03.5]}
51... Rb6 {[%clk 0:00:08.6]} 52. Rxb6 {[%clk 0:00:03.3]} 52... Bg7 {[%clk
0:00:08.3]} 53. Rb3 {[%clk 0:00:04.2]} 53... Bf8 {[%clk 0:00:08.3]} 54. Nxa3
{[%clk 0:00:04.3]} 1-0

[Event "*** SCC Grand Prix: Titled Tuesday Blitz"]
[Site "Chess.com"]
[Date "2020.07.21"]
[Round "8"]
[White "TheCount"]
[Black "turayev_shahruh17"]
[Result "1-0"]
[WhiteElo "2664"]
[BlackElo "2536"]
[TimeControl "180+1"]
[EndTime "11:36:43 PDT"]
[Termination "TheCount won by resignation"]

1. d4 {[%clk 0:03:00.9]} 1... c5 {[%clk 0:02:59]} 2. d5 {[%clk 0:02:59.8]} 2...
Nf6 {[%clk 0:02:58.4]} 3. c4 {[%clk 0:02:59.8]} 3... g6 {[%clk 0:02:58.8]} 4.
Nc3 {[%clk 0:02:59]} 4... Bg7 {[%clk 0:02:59.7]} 5. e4 {[%clk 0:02:58.6]} 5...
d6 {[%clk 0:03:00.3]} 6. Bg5 {[%clk 0:02:55.7]} 6... O-O {[%clk 0:03:00.4]} 7.
Be2 {[%clk 0:02:56.3]} 7... b5 {[%clk 0:02:56.3]} 8. cxb5 {[%clk 0:02:56]} 8...
a6 {[%clk 0:02:56.8]} 9. bxa6 {[%clk 0:02:39]} 9... Bxa6 {[%clk 0:02:57.7]} 10.
Bxa6 {[%clk 0:02:38.5]} 10... Nxa6 {[%clk 0:02:58.6]} 11. Nge2 {[%clk
0:02:39.1]} 11... Qa5 {[%clk 0:02:58.5]} 12. O-O {[%clk 0:02:35.9]} 12... Rfb8
{[%clk 0:02:58.8]} 13. b3 {[%clk 0:02:27.6]} 13... h6 {[%clk 0:02:35.1]} 14. Bd2
{[%clk 0:02:24.2]} 14... Nb4 {[%clk 0:02:28.3]} 15. a4 {[%clk 0:02:15.8]} 15...
Qa6 {[%clk 0:02:22.8]} 16. f3 {[%clk 0:02:00.4]} 16... Ne8 {[%clk 0:02:07.1]}
17. Rb1 {[%clk 0:01:54.8]} 17... Nc7 {[%clk 0:02:03.8]} 18. Be3 {[%clk 0:01:48]}
18... Nd3 {[%clk 0:01:54.9]} 19. Qd2 {[%clk 0:01:45.3]} 19... Rb7 {[%clk
0:01:41.4]} 20. Bxh6 {[%clk 0:01:41.1]} 20... Rab8 {[%clk 0:01:36.5]} 21. Bxg7
{[%clk 0:01:40.3]} 21... Kxg7 {[%clk 0:01:37.4]} 22. Nb5 {[%clk 0:01:29.8]}
22... Nxb5 {[%clk 0:01:27.2]} 23. Qxd3 {[%clk 0:01:29.2]} 23... Nc7 {[%clk
0:01:27.8]} 24. Qc3+ {[%clk 0:01:29.5]} 24... Kg8 {[%clk 0:01:26.8]} 25. Nf4
{[%clk 0:01:24.8]} 25... Rb4 {[%clk 0:01:19.2]} 26. h4 {[%clk 0:01:13.7]} 26...
Qb7 {[%clk 0:01:16.5]} 27. h5 {[%clk 0:01:06.3]} 27... g5 {[%clk 0:01:08.7]} 28.
Nh3 {[%clk 0:00:38.7]} 28... f6 {[%clk 0:01:08.5]} 29. f4 {[%clk 0:00:20.4]}
29... g4 {[%clk 0:01:08.5]} 30. Qg3 {[%clk 0:00:18.3]} 30... Qc8 {[%clk
0:00:58.8]} 31. f5 {[%clk 0:00:18.3]} 31... Kf7 {[%clk 0:00:41.1]} 32. Qxg4
{[%clk 0:00:17.3]} 32... Qg8 {[%clk 0:00:33.7]} 33. Qg6+ {[%clk 0:00:17.3]}
33... Kf8 {[%clk 0:00:33]} 34. Nf4 {[%clk 0:00:10.4]} 34... Rxb3 {[%clk
0:00:30.4]} 35. Rxb3 {[%clk 0:00:09.5]} 35... Rxb3 {[%clk 0:00:31.3]} 36. Ra1
{[%clk 0:00:08]} 36... Rb6 {[%clk 0:00:24.8]} 37. a5 {[%clk 0:00:07.8]} 37...
Ra6 {[%clk 0:00:25.1]} 38. g4 {[%clk 0:00:04.3]} 38... Qxg6 {[%clk 0:00:21.1]}
39. fxg6 {[%clk 0:00:05.2]} 39... Kg7 {[%clk 0:00:20.2]} 40. Rb1 {[%clk
0:00:04.5]} 40... Ra7 {[%clk 0:00:19.8]} 41. Rb6 {[%clk 0:00:04.1]} 41... Kh6
{[%clk 0:00:13.6]} 42. Rc6 {[%clk 0:00:04.5]} 42... Nb5 {[%clk 0:00:13.5]} 43.
Ne6 {[%clk 0:00:03.9]} 43... Ra8 {[%clk 0:00:13.6]} 44. g7 {[%clk 0:00:03.8]}
44... Kh7 {[%clk 0:00:13.2]} 45. a6 {[%clk 0:00:04.1]} 45... Nd4 {[%clk
0:00:13.7]} 46. Nxd4 {[%clk 0:00:02.7]} 46... cxd4 {[%clk 0:00:14.6]} 47. Rc7
{[%clk 0:00:03.3]} 47... Kxg7 {[%clk 0:00:13.2]} 48. Rxe7+ {[%clk 0:00:03.5]}
48... Kh6 {[%clk 0:00:14.1]} 49. a7 {[%clk 0:00:03.4]} 49... Kg5 {[%clk
0:00:14.3]} 50. Rg7+ {[%clk 0:00:03.8]} 50... Kf4 {[%clk 0:00:11.8]} 51. Kf2
{[%clk 0:00:03.7]} 51... Kxe4 {[%clk 0:00:11.5]} 52. h6 {[%clk 0:00:04.2]} 52...
Kd3 {[%clk 0:00:10.2]} 53. h7 {[%clk 0:00:04.5]} 53... Kc2 {[%clk 0:00:10.8]}
54. Rg8 {[%clk 0:00:05]} 1-0

[Event "*** SCC Grand Prix: Titled Tuesday Blitz"]
[Site "Chess.com"]
[Date "2020.07.21"]
[Round "8"]
[White "FairChess_on_YouTube"]
[Black "sergiochess83"]
[Result "1-0"]
[WhiteElo "2993"]
[BlackElo "2836"]
[TimeControl "180+1"]
[EndTime "11:36:44 PDT"]
[Termination "FairChess_on_YouTube won by resignation"]

1. e4 {[%clk 0:03:00.9]} 1... e5 {[%clk 0:02:58.8]} 2. Nc3 {[%clk 0:03:00.6]}
2... Nf6 {[%clk 0:02:57.2]} 3. Nf3 {[%clk 0:03:00.8]} 3... Nc6 {[%clk
0:02:55.3]} 4. Bb5 {[%clk 0:03:00.6]} 4... Bb4 {[%clk 0:02:53.5]} 5. O-O {[%clk
0:03:00]} 5... O-O {[%clk 0:02:51.7]} 6. d3 {[%clk 0:03:00.4]} 6... d6 {[%clk
0:02:48]} 7. Ne2 {[%clk 0:03:00.2]} 7... Ne7 {[%clk 0:02:46.2]} 8. c3 {[%clk
0:03:00.1]} 8... Ba5 {[%clk 0:02:45.2]} 9. Ng3 {[%clk 0:02:59.9]} 9... c6 {[%clk
0:02:44]} 10. Ba4 {[%clk 0:03:00.1]} 10... Ng6 {[%clk 0:02:41.3]} 11. d4 {[%clk
0:02:51.1]} 11... Re8 {[%clk 0:02:24.6]} 12. Bc2 {[%clk 0:02:49.5]} 12... Bb6
{[%clk 0:02:23.8]} 13. h3 {[%clk 0:02:46.1]} 13... d5 {[%clk 0:01:47.8]} 14.
Nxe5 {[%clk 0:02:24.8]} 14... Nxe4 {[%clk 0:01:20]} 15. Nxe4 {[%clk 0:01:56.5]}
15... dxe4 {[%clk 0:01:18.8]} 16. Qh5 {[%clk 0:01:55.1]} 16... Nxe5 {[%clk
0:01:10.2]} 17. dxe5 {[%clk 0:01:54.7]} 17... g6 {[%clk 0:01:10.8]} 18. Qh6
{[%clk 0:00:59.7]} 18... Rxe5 {[%clk 0:01:08.5]} 19. Be3 {[%clk 0:01:00.1]}
19... Qe7 {[%clk 0:00:18.1]} 20. Rae1 {[%clk 0:00:54.4]} 20... Bxe3 {[%clk
0:00:15.9]} 21. Rxe3 {[%clk 0:00:53]} 21... Bd7 {[%clk 0:00:13.6]} 22. Rfe1
{[%clk 0:00:45.8]} 22... f5 {[%clk 0:00:09.5]} 23. f3 {[%clk 0:00:38.5]} 23...
Rf8 {[%clk 0:00:06.7]} 24. h4 {[%clk 0:00:19.3]} 24... c5 {[%clk 0:00:04.3]} 25.
Qf4 {[%clk 0:00:19.2]} 25... Bc6 {[%clk 0:00:03.5]} 26. fxe4 {[%clk 0:00:18.6]}
26... fxe4 {[%clk 0:00:02.8]} 27. Qg3 {[%clk 0:00:18.6]} 27... Kg7 {[%clk
0:00:03.1]} 28. a3 {[%clk 0:00:17.3]} 28... b6 {[%clk 0:00:03.6]} 29. b4 {[%clk
0:00:17.5]} 29... Qf6 {[%clk 0:00:03.7]} 30. Kh2 {[%clk 0:00:16.4]} 30... Qf4
{[%clk 0:00:03.5]} 31. bxc5 {[%clk 0:00:15.8]} 31... Qxg3+ {[%clk 0:00:03.5]}
32. Kxg3 {[%clk 0:00:16.4]} 32... Rxc5 {[%clk 0:00:03.9]} 33. Rd1 {[%clk
0:00:16.6]} 33... Re8 {[%clk 0:00:03.8]} 34. Rd6 {[%clk 0:00:16.3]} 34... Re7
{[%clk 0:00:04]} 35. Kf4 {[%clk 0:00:15]} 35... Rf7+ {[%clk 0:00:04]} 36. Kg3
{[%clk 0:00:15.4]} 36... Rf6 {[%clk 0:00:04.4]} 37. Rd4 {[%clk 0:00:14.5]} 37...
g5 {[%clk 0:00:04.6]} 38. h5 {[%clk 0:00:11.7]} 38... Kh6 {[%clk 0:00:04.6]} 39.
Bd1 {[%clk 0:00:11.4]} 39... Re6 {[%clk 0:00:03.8]} 40. Bg4 {[%clk 0:00:10.5]}
40... Rf6 {[%clk 0:00:04.5]} 41. Rd8 {[%clk 0:00:10.4]} 41... Rd5 {[%clk
0:00:04]} 42. Rc8 {[%clk 0:00:10]} 42... Rd3 {[%clk 0:00:03.9]} 43. Rxd3 {[%clk
0:00:09.8]} 43... exd3 {[%clk 0:00:04.8]} 44. Rd8 {[%clk 0:00:10.3]} 44... Be4
{[%clk 0:00:03.3]} 45. Rd4 {[%clk 0:00:09.5]} 45... Bf5 {[%clk 0:00:03.5]} 46.
Bxf5 {[%clk 0:00:04.5]} 46... Rxf5 {[%clk 0:00:04.4]} 47. Rxd3 {[%clk 0:00:05]}
47... Kxh5 {[%clk 0:00:04.3]} 48. Rd7 {[%clk 0:00:05]} 48... Ra5 {[%clk
0:00:04.9]} 49. Rxh7+ {[%clk 0:00:04.4]} 49... Kg6 {[%clk 0:00:05.8]} 50. Rc7
{[%clk 0:00:03.7]} 50... Rxa3 {[%clk 0:00:06.7]} 51. Kg4 {[%clk 0:00:03.9]}
51... Ra4+ {[%clk 0:00:06.7]} 52. c4 {[%clk 0:00:04.2]} 52... Kf6 {[%clk
0:00:06.7]} 53. Rc6+ {[%clk 0:00:04.4]} 53... Ke5 {[%clk 0:00:06.9]} 54. Kxg5
{[%clk 0:00:05]} 54... Kd4 {[%clk 0:00:06.8]} 55. g4 {[%clk 0:00:04.9]} 55...
Rxc4 {[%clk 0:00:06.8]} 56. Rxc4+ {[%clk 0:00:04.6]} 56... Kxc4 {[%clk
0:00:07.1]} 57. Kf6 {[%clk 0:00:05]} 57... b5 {[%clk 0:00:03.2]} 58. g5 {[%clk
0:00:05.9]} 1-0

[Event "*** SCC Grand Prix: Titled Tuesday Blitz"]
[Site "Chess.com"]
[Date "2020.07.21"]
[Round "8"]
[White "Munkhzul_Turmunkh"]
[Black "bascheyaro"]
[Result "1-0"]
[WhiteElo "2621"]
[BlackElo "2721"]
[TimeControl "180+1"]
[EndTime "11:36:44 PDT"]
[Termination "Munkhzul_Turmunkh won by resignation"]

1. e4 {[%clk 0:03:00.9]} 1... e6 {[%clk 0:02:58.4]} 2. d4 {[%clk 0:03:00.1]}
2... d5 {[%clk 0:02:59.3]} 3. exd5 {[%clk 0:03:00.3]} 3... exd5 {[%clk
0:02:59.3]} 4. Bd3 {[%clk 0:02:57.3]} 4... c5 {[%clk 0:02:59.4]} 5. dxc5 {[%clk
0:02:38.2]} 5... Bxc5 {[%clk 0:03:00.3]} 6. Nf3 {[%clk 0:02:34.1]} 6... Nf6
{[%clk 0:03:00.5]} 7. O-O {[%clk 0:02:30.1]} 7... O-O {[%clk 0:03:00.5]} 8. Bf4
{[%clk 0:02:24]} 8... Bg4 {[%clk 0:02:59.5]} 9. h3 {[%clk 0:02:20.1]} 9... Bh5
{[%clk 0:02:59.4]} 10. Nbd2 {[%clk 0:02:14.8]} 10... Nc6 {[%clk 0:02:58.8]} 11.
c3 {[%clk 0:02:11.2]} 11... Bb6 {[%clk 0:02:51.2]} 12. Qc2 {[%clk 0:02:02.2]}
12... Rc8 {[%clk 0:02:41.4]} 13. a3 {[%clk 0:01:50.9]} 13... Re8 {[%clk
0:02:29.6]} 14. Rae1 {[%clk 0:01:47.7]} 14... Bg6 {[%clk 0:01:51.5]} 15. Bxg6
{[%clk 0:01:44.3]} 15... hxg6 {[%clk 0:01:51.4]} 16. Rxe8+ {[%clk 0:01:40.5]}
16... Qxe8 {[%clk 0:01:52]} 17. Re1 {[%clk 0:01:38.6]} 17... Qd7 {[%clk
0:01:52.3]} 18. Qd3 {[%clk 0:01:29.6]} 18... Re8 {[%clk 0:01:48.7]} 19. Rxe8+
{[%clk 0:01:23.3]} 19... Qxe8 {[%clk 0:01:49.6]} 20. Kf1 {[%clk 0:01:17.8]}
20... Qe6 {[%clk 0:01:37.5]} 21. Ng5 {[%clk 0:01:08.2]} 21... Qe7 {[%clk
0:01:34]} 22. Qe2 {[%clk 0:01:01.6]} 22... Kf8 {[%clk 0:01:27.6]} 23. Ngf3
{[%clk 0:00:55.9]} 23... Ne4 {[%clk 0:01:20.4]} 24. Nxe4 {[%clk 0:00:51.4]}
24... Qxe4 {[%clk 0:01:21.3]} 25. Qxe4 {[%clk 0:00:48.3]} 25... dxe4 {[%clk
0:01:22.2]} 26. Nd2 {[%clk 0:00:45.4]} 26... f5 {[%clk 0:01:21.9]} 27. f3 {[%clk
0:00:42.5]} 27... exf3 {[%clk 0:01:21.2]} 28. Nxf3 {[%clk 0:00:43]} 28... Kf7
{[%clk 0:01:16]} 29. Ne5+ {[%clk 0:00:38.7]} 29... Nxe5 {[%clk 0:01:15.7]} 30.
Bxe5 {[%clk 0:00:39.6]} 30... g5 {[%clk 0:01:16.4]} 31. Ke2 {[%clk 0:00:38.9]}
31... g6 {[%clk 0:01:16]} 32. Kf3 {[%clk 0:00:39]} 32... Ke6 {[%clk 0:01:15.8]}
33. Bg7 {[%clk 0:00:36.1]} 33... Bc7 {[%clk 0:01:14.1]} 34. Bd4 {[%clk
0:00:35.1]} 34... a6 {[%clk 0:01:08.5]} 35. a4 {[%clk 0:00:29.4]} 35... Kd5
{[%clk 0:01:05.5]} 36. Bf6 {[%clk 0:00:28.8]} 36... Bf4 {[%clk 0:01:02.2]} 37.
b3 {[%clk 0:00:27.3]} 37... Bd2 {[%clk 0:00:58.5]} 38. Ke2 {[%clk 0:00:26.3]}
38... Bf4 {[%clk 0:00:55.8]} 39. Kd3 {[%clk 0:00:26.3]} 39... Ke6 {[%clk
0:00:51.1]} 40. Bd8 {[%clk 0:00:25.3]} 40... Bc1 {[%clk 0:00:48.6]} 41. b4
{[%clk 0:00:23.3]} 41... g4 {[%clk 0:00:44.9]} 42. hxg4 {[%clk 0:00:22.5]} 42...
fxg4 {[%clk 0:00:45.5]} 43. c4 {[%clk 0:00:20.2]} 43... Ba3 {[%clk 0:00:43.3]}
44. b5 {[%clk 0:00:19.7]} 44... Bc5 {[%clk 0:00:34.1]} 45. Ke4 {[%clk
0:00:18.7]} 45... Kd6 {[%clk 0:00:31.7]} 46. Bf6 {[%clk 0:00:16]} 46... Bf2
{[%clk 0:00:29.8]} 47. Bd4 {[%clk 0:00:12]} 47... g3 {[%clk 0:00:23.4]} 48. c5+
{[%clk 0:00:11.5]} 48... Kd7 {[%clk 0:00:21.4]} 49. Kd5 {[%clk 0:00:11.5]} 49...
Kc8 {[%clk 0:00:18.8]} 50. Be5 {[%clk 0:00:11.3]} 50... axb5 {[%clk 0:00:18.5]}
51. axb5 {[%clk 0:00:12.2]} 51... g5 {[%clk 0:00:16.6]} 52. c6 {[%clk
0:00:11.8]} 52... g4 {[%clk 0:00:16.2]} 53. Bd6 {[%clk 0:00:08.3]} 53... Bb6
{[%clk 0:00:15.1]} 54. Bxg3 {[%clk 0:00:07.5]} 54... Ba5 {[%clk 0:00:14.9]} 55.
Bd6 {[%clk 0:00:07.3]} 55... Bd2 {[%clk 0:00:14.6]} 56. Ke4 {[%clk 0:00:07.4]}
56... bxc6 {[%clk 0:00:03.7]} 57. bxc6 {[%clk 0:00:08.3]} 57... Bb4 {[%clk
0:00:03.5]} 58. Bxb4 {[%clk 0:00:07.8]} 1-0